Cogmind - Beta 15 @@@ ROGUE MODE // 2025.07.20 @ 08:13:50 Player: shapeshifter Result: Destroyed by BI-VDM(R) with Subdweller Beam Cannon Performance ------------- Evolutions (0) 0 Regions Visited (3) 600 Robots Destroyed (23) 115 Value Destroyed (431) 431 Prototype IDs (0) 0 Alien Tech Used (0) 0 Bonus (0) 0 TOTAL SCORE: 1146 Bonus ------- None Cogmind --------- Core Integrity 0/250 Matter 300/300 Energy 125/125 System Corruption 0% Temperature Warm (171) Movement Walking (190) Ox1 Location -10/Subcaves Parts ------- > --- POWER (1) -------- Light Ion Engine > --- PROPULSION (2) --- Aluminum Leg Aluminum Leg > --- UTILITY (2) ------ Large Storage Unit > --- WEAPON (2) ------- Assault Rifle > --- INVENTORY (15) --- Light Ion Engine Light Treads Small Matter Pod (50) Signal Interpreter Improved Terrain Scanner Core Shielding Medium Laser Light Assault Rifle Light Assault Rifle Grenade Launcher Peak State ------------ > --- POWER ------------ Light Ion Engine > --- PROPULSION ------- Light Treads Light Treads > --- UTILITY ---------- Small Storage Unit Seismic Detector > --- WEAPON ----------- Medium Laser Assault Rifle > --- INVENTORY -------- Light Ion Engine Aluminum Leg Aluminum Leg Large Storage Unit Improved Terrain Scanner Core Shielding Light Assault Rifle Grenade Launcher [Rating: 8] Favorites ----------- Power Light Ion Engine Engine Light Ion Engine Propulsion Light Treads Treads Light Treads Leg Aluminum Leg Utility Seismic Detector Device Seismic Detector Storage Large Storage Unit Weapon Assault Rifle Energy Gun Medium Laser Ballistic Gun Assault Rifle Ballistic Cannon Light Cannon Launcher Grenade Launcher Build | -11 -10 -10 -10 ------- Run | Yrd Mat Min Sub Slots Evolved . | . . . . Power . | . . . . Propulsion . | . . . . Utility . | . . . . Weapon . | . . . . Parts Attached 14 | 7 2 5 . Power 1 | 1 . . . Engine 1 | 1 . . . Core . | . . . . Reactor . | . . . . Propulsion 4 | 2 . 2 . Treads 2 | 2 . . . Leg 2 | . . 2 . Wheel . | . . . . Hover . | . . . . Flight . | . . . . Utility 3 | 2 1 . . Device 1 | 1 . . . Storage 2 | 1 1 . . Processor . | . . . . Hackware . | . . . . Protection . | . . . . Artifact . | . . . . Weapon 6 | 2 1 3 . Energy Gun 1 | 1 . . . Energy Cannon . | . . . . Ballistic Gun 3 | 1 1 1 . Ballistic Cannon 1 | . . 1 . Launcher 1 | . . 1 . Special Weapon . | . . . . Impact Weapon . | . . . . Slashing Weapon . | . . . . Piercing Weapon . | . . . . Special Melee Weapon . | . . . . Unidentified Prototypes . | . . . . Parts Lost 4 | . . 2 2 Power . | . . . . Propulsion 1 | . . 1 . Utility 1 | . . . 1 Weapon 2 | . . 1 1 Highest Loss Streak 1 | . . 1 1 To Critical Strikes 1 | . . 1 . Average Backups 9 | 2 9 10 10 Power . | . 1 1 1 Propulsion 1 | 1 2 1 1 Utility 3 | . 3 4 4 Weapon 3 | . 3 4 4 Tool/Special . | . . . . Unused Backups 6 | . . . 6 Power 1 | . . . 1 Propulsion . | . . . . Utility 4 | . . . 4 Weapon 1 | . . . 1 Tool/Special . | . . . . Average Slot Usage (%) 99 | . 100 99 95 Engine 14 | . 14 14 14 Treads 16 | . 28 11 . Leg 11 | . . 16 28 Device 13 | . 14 14 9 Storage 14 | . 14 14 14 Energy Gun 2 | . 5 . . Ballistic Gun 18 | . 22 16 14 Ballistic Cannon 6 | . . 10 14 Peak Build Rating 8 | 7 8 8 8 Average Rating 7 | 5 7 7 7 On Entrance 5 | . 7 8 8 Naked Turns . | . . . . Heaviest Build 29 | 13 28 29 29 Greatest Support 40 | 40 40 40 20 Greatest Overweight (x) 1 | . . 1 1 Average Overweight (x) . | . . . 1 Largest Inventory Capacity 15 | 8 15 15 15 Average Capacity 14 | 7 14 15 15 Most Carried 12 | 5 12 12 10 Average Carried 9 | 3 9 10 10 Final Capacity 15 | 8 15 15 15 Final Carried 12 | 5 12 10 10 Class Distribution -------------------- 100% | Mutant Dominant Class ---------------- Mutant | -10/Materials Mutant | -10/Mines Mutant | -10/Subcaves Resources | -11 -10 -10 -10 ----------- Run | Yrd Mat Min Sub Matter Collected 762 | 222 286 114 140 Remotely . | . . . . Salvage Created 670 | 20 366 141 143 Parts 47 | 2 23 9 13 Haulers Intercepted . | . . . . Recyclers Shooed . | . . . . Parts Field Recycled . | . . . . Retrieved Matter . | . . . . Parts Self-Destructed 6 | . . . 6 Prevented . | . . . . Kills | -11 -10 -10 -10 ------- Run | Yrd Mat Min Sub Combat Hostiles Destroyed 17 | . 7 5 5 Guns 13 | . 7 2 4 Cannons 4 | . . 3 1 Classes Destroyed 7 | 1 5 . 1 Worker 3 | . 2 1 . Builder 1 | . 1 . . Tunneler 1 | 1 . . . Recycler 1 | . 1 . . Swarmer 9 | . 3 3 3 Grunt 6 | . 4 2 . Subdweller 2 | . . . 2 Best Kill Streak 5 | 1 5 2 5 Combat Bots Only 5 | . 4 1 5 Max Kills in Single Turn 2 | 1 2 2 1 Gunslinging . | . . . . Exploded . | . . . . Melee . | . . . . Uniques/NPCs Destroyed . | . . . . Combat | -11 -10 -10 -10 -------- Run | Yrd Mat Min Sub Hostile Shots Fired 106 | . 42 34 30 Missed 31 | . 11 14 6 Hits 75 | . 31 20 24 Projectile 75 | . 31 20 24 Critical Strikes 3 | . . 2 1 Damage Taken 1021 | . 313 308 400 Core 272 | . 71 81 120 Absorbed by Shields . | . . . . Core Remaining (%) 100 | 100 . . . Volleys Fired 65 | 3 27 27 8 Largest 2 | 2 2 2 2 Hottest 70 | 70 70 60 50 Shots Fired 116 | 6 54 40 16 Gun 100 | 6 54 32 8 Cannon 15 | . . 7 8 Launcher 1 | . . 1 . Special . | . . . . Kinetic 109 | 3 51 39 16 Thermal 6 | 3 3 . . Explosive 1 | . . 1 . Electromagnetic . | . . . . Robot Hit Streak 8 | 3 6 8 5 Robot Miss Streak 8 | 2 8 5 3 Penetration Max . | . . . . Secondary Targets 3 | . 1 2 . Max Gunslinging Chain 1 | . 1 1 . Shots Hit Robots 58 | 3 27 20 8 Core Hits 32 | 1 16 9 6 Critical Kills 1 | . . . 1 Critical Parts Destroyed 1 | . . 1 . Critical Strikes 4 | . 1 2 1 Burn 1 | . 1 . . Destroy 2 | . . 1 1 Blast 1 | . . 1 . Melee Attacks . | . . . . Impact . | . . . . Slashing . | . . . . Piercing . | . . . . Sneak Attacks . | . . . . Combat Hostiles . | . . . . Follow-up Attacks . | . . . . Damage Inflicted 894 | 51 417 290 136 Guns 753 | 51 414 209 79 Cannons 127 | . . 70 57 Explosions 3 | . . 3 . Melee . | . . . . Ramming 11 | . 3 8 . Kinetic 828 | 12 401 279 136 Thermal 52 | 39 13 . . Explosive 3 | . . 3 . Electromagnetic . | . . . . Impact . | . . . . Slashing . | . . . . Piercing . | . . . . Highest Corruption . | . . . . Average Corruption . | . . . . Corruption Purged . | . . . . Corruption Blocked . | . . . . Overload Shots . | . . . . Overflow Damage . | . . . . Projectiles . | . . . . Explosions . | . . . . Melee . | . . . . Knockbacks . | . . . . Impact . | . . . . Kinetic . | . . . . Secondary . | . . . . Self-Inflicted Damage 17 | . . 17 . Shots 1 | . . 1 . Rammed 1 | . 1 . . Targets Rammed 4 | . 1 3 . Kicked 3 | . . 3 . Crushed . | . . . . Highest Temperature 269 | 18 18 17 269 Average Temperature 31 | 9 6 5 215 Received Heat Transfer 618 | . 84 135 399 Siege Activations . | . . . . Martial Activations . | . . . . Shielding Activations . | . . . . Robots Disrupted . | . . . . Combat Hostiles . | . . . . Robots Corrupted . | . . . . Combat Hostiles . | . . . . Parts Fried . | . . . . Impact Corruptions . | . . . . Robots Melted . | . . . . Combat Hostiles . | . . . . Parts Melted . | . . . . Heat Transferred 222 | 111 111 . . Parts Sabotaged . | . . . . Parts Stolen . | . . . . Parts Stripped . | . . . . Power Chain Reactions . | . . . . Alert | -11 -10 -10 -10 ------- Run | Yrd Mat Min Sub Maximum Alert Level . | . . . . Low Security (%) 100 | 100 100 100 . Level 1 . | . . . . Level 2 . | . . . . Level 3 . | . . . . Level 4 . | . . . . Level 5 . | . . . . High Security . | . . . . Max Security . | . . . . Peak Influence 125 | 5 125 65 . Initial 40 | . . 40 . Average 18 | . 22 18 . Influence Increases 463 | 5 199 189 70 Destroy 0b10 Robot/C 300 | . 140 100 60 Destroy 0b10 Robot/NC 30 | 5 20 5 . Destroy Leader 60 | . 30 20 10 Successful Hack 9 | . 9 . . Disable Machine 15 | . . 15 . Destroy Structure 4 | . . 4 . Lose Combat Pursuer 45 | . . 45 . Influence Decreases 453 | 5 93 295 60 Entered New Map 66 | . . 66 . Time Decay 327 | 5 93 189 40 Lost Part 40 | . . 20 20 Lost Ally 20 | . . 20 . Squads Dispatched 2 | . 2 . . Investigation 1 | . 1 . . Extermination . | . . . . Reinforcement 1 | . 1 . . Assault . | . . . . Garrison . | . . . . Intercept . | . . . . Searches Triggered . | . . . . Construction Impeded . | . . . . Haulers Reinforced . | . . . . Active Scanning Responses . | . . . . Cargo Convoy Interrupts . | . . . . Stealth | -11 -10 -10 -10 --------- Run | Yrd Mat Min Sub Distress Signals 2 | . 1 1 . Communications Jammed . | . . . . Distress Signals . | . . . . Times Spotted 24 | . 11 7 6 Peak Tracking Total 5 | . 4 3 5 Tactical Retreats 2 | . . 2 . Traps | -11 -10 -10 -10 ------- Run | Yrd Mat Min Sub Traps Triggered . | . . . . Indirectly . | . . . . Trap Hack Attempts . | . . . . Triggered . | . . . . Disarmed . | . . . . Reprogrammed . | . . . . Reused . | . . . . Traps Extracted . | . . . . Installed . | . . . . Triggered . | . . . . Machines | -11 -10 -10 -10 ---------- Run | Yrd Mat Min Sub Machines Disabled 2 | . 1 1 . Max in Single Turn 1 | . 1 1 . Machines Repaired . | . . . . Machines Dismantled . | . . . . Machines Sabotaged . | . . . . Overloaded Fab Kills . | . . . . Hacking | -11 -10 -10 -10 --------- Run | Yrd Mat Min Sub Machines Accessed 3 | . 3 . . Terminals 3 | . 3 . . Fabricators . | . . . . Repair Stations . | . . . . Recycling Units . | . . . . Scanalyzers . | . . . . Garrison Access . | . . . . Total Hacks 12 | . 12 . . Successful 5 | . 5 . . Failed 7 | . 7 . . Catastrophic 1 | . 1 . . Database Lockouts . | . . . . Manual . | . . . . Terminals 12 | . 12 . . Fabricators . | . . . . Repair Stations . | . . . . Recycling Units . | . . . . Scanalyzers . | . . . . Garrison Access . | . . . . Terminal Hacks 5 | . 5 . . Alert Level 1 | . 1 . . Locate Traps 1 | . 1 . . Transport Status 1 | . 1 . . Recall Reinforcements 1 | . 1 . . Zone Layout 1 | . 1 . . Fabricator Hacks . | . . . . Repair Station Hacks . | . . . . Recycling Unit Hacks . | . . . . Scanalyzer . | . . . . Garrison Access Hacks . | . . . . Unauthorized Hacks . | . . . . Terminals . | . . . . Fabricators . | . . . . Repair Stations . | . . . . Recycling Units . | . . . . Scanalyzers . | . . . . Garrison Access . | . . . . Data Cores Recovered . | . . . . Used . | . . . . Hacking Detections 2 | . 2 . . Full Trace Events 1 | . 1 . . Feedback Events . | . . . . Feedback Blocked . | . . . . Robot Schematics Acquired . | . . . . Robots Built . | . . . . Authchips . | . . . . Time . | . . . . Total Robot Build Rating . | . . . . Part Schematics Acquired . | . . . . Parts Built . | . . . . Authchips . | . . . . Time . | . . . . Total Part Build Rating . | . . . . Parts Repaired . | . . . . Time . | . . . . Parts Recycled . | . . . . Recycled Matter . | . . . . Retrieved Matter . | . . . . Retrieved Components . | . . . . Parts Scanalyzed . | . . . . Part Schematics Acquired . | . . . . Parts Damaged . | . . . . Bothacking | -11 -10 -10 -10 ------------ Run | Yrd Mat Min Sub Used RIF Installer . | . . . . Robots Hacked . | . . . . Non-combat . | . . . . Combat . | . . . . Robot Hacks Applied . | . . . . Relay Couplers Released . | . . . . Fabnet Peak Effective % . | . . . . Robots Rewired . | . . . . Allies Hacked . | . . . . Hacks Repelled . | . . . . Allies | -11 -10 -10 -10 -------- Run | Yrd Mat Min Sub Total Allies 1 | . . 1 . Largest Group 1 | . . 1 . Highest-Rated Group 31 | . . 31 . Highest-Rated Ally 31 | . . 31 . Total Orders . | . . . . Ally Attacks 5 | . . 5 . Total Damage 106 | . . 106 . Kills . | . . . . Allies Corrupted . | . . . . Allies Melted . | . . . . Intel | -11 -10 -10 -10 ------- Run | Yrd Mat Min Sub Active Infowar (turns) 1313 | 17 570 597 129 Seismic 1313 | 17 570 597 129 Robot Analysis Total . | . . . . Derelict Logs Recovered 1 | . . 1 . Drone Launches . | . . . . Drone Recoveries . | . . . . Exploration | -11 -10 -10 -10 ------------- Run | Yrd Mat Min Sub Turns Passed 1491 | 141 570 597 183 Spaces Moved 684 | 74 239 287 84 Core 4 | 4 . . . Treads 416 | 70 239 107 . Legs 264 | . . 180 84 Wheels . | . . . . Hover . | . . . . Flight . | . . . . Fastest Speed 50 | 50 160 160 190 Average Speed 170 | 154 160 178 190 Slowest Speed 190 | 160 160 190 190 Overloaded Moves . | . . . . Propulsion Burnouts . | . . . . Robots Hopped . | . . . . Potential Cave-ins . | . . . . Cave-ins Triggered . | . . . . Exploration Rate (%) 28 | 5 51 51 5 Regions Visited 3 Branch Regions 2 Pre-discovered Areas 1 | . . 1 . Known Exits Taken . | . . . . Unknown Exits Taken 3 | 1 1 1 . Scrap Searched . | . . . . Spaces Dug . | . . . . Terrain Destroyed 4 | . . 4 . Melee . | . . . . Projectile . | . . . . AOE 4 | . . 4 . Terrain Rammed . | . . . . Walls Destroyed . | . . . . Machines Disabled . | . . . . Actions | -11 -10 -10 -10 --------- Run | Yrd Mat Min Sub Total 883 | 95 371 325 92 Wait 93 | . 93 . . Move 681 | 73 238 286 84 Hop . | . . . . Pick Up 20 | 12 8 . . Fast Attach . | . . . . Attach 9 | 7 . 2 . Detach . | . . . . Swap 10 | . 3 7 . Drop 1 | . 1 . . Fire 65 | 3 27 27 8 Melee . | . . . . Ram . | . . . . Kick 3 | . . 3 . Crush 1 | . 1 . . Escape Stasis . | . . . . Rewire . | . . . . Trap . | . . . . Miscellaneous . | . . . . Route ------- -11/Scrapyard -10/Materials -10/Mines (discovered 2 exits: [*Mat] / [*Sub]) -10/Subcaves History --------- Turn | Location | Event 2 | -11/Scrapyard | Met Revision 17 4 | -11/Scrapyard | Discovered new exit (range 15) 142 | -11/Scrapyard | Entered Materials 311 | -10/Materials | Build established: Mutant 535 | -10/Materials | Discovered new exit (range 16) 712 | -10/Materials | Entered Mines 721 | -10/Mines | Escorted by a lone wolf Derelict 741 | -10/Mines | Learned location of Storage (-8) 790 | -10/Mines | Learned Materials security intel 842 | -10/Mines | Core integrity fell below 50% 917 | -10/Mines | Discovered new exit (range 9) 1157 | -10/Mines | Discovered new exit (range 6) 1236 | -10/Mines | Assembled infested the area 1309 | -10/Mines | Entered Subcaves 1310 | -10/Subcaves | Approached by a straggling Scientist 1445 | -10/Subcaves | Core integrity fell below 20% 1480 | -10/Subcaves | Shifting Twisted Machinery released Sub. Laser 1481 | -10/Subcaves | Shifting Twisted Machinery released Sub. Power Source 1492 | -10/Subcaves | Destroyed by BI-VDM(R) with Subdweller Beam Cannon Last Messages --------------- 01438_ Seismic Detector destroyed. 01438_ 41-AJE(R) suffers critical hit (Destroy). 01438_ 41-AJE(R) destroyed. 01439_ Subatomizers dissect the Sub. Laser. 01440_ Flight Unit fries itself beyond repair. 01443_ Lgt. Ion Engine fries itself beyond repair. 01444_ EP-M2N(R) destroyed. 01447_ Acquired 50 matter. 01451_ Acquired 4 matter. 01457_ Acquired 55 matter. 01465_ Acquired 13 matter. 01466_ Acquired 14 matter. Sub. Laser falls loose from the Twisted Machinery. Sub. Power Source falls loose from the Twisted Machinery. 01488_ Critical hit (Meltdown: +300). 01490_ Lgt. Cannon destroyed. Map ----- +----------------------------------------------------+ | ??????????????????????????????## #????????? | | ???????????????????????????????## !###????????? | | ????????????????????????????????## ! #??????????? | | ?????????????????????????????????# ##??????????? | | ?????????????????????????????????# ##??????????? | | ???????????????????????????????### ###????????? | | ???????????????????????????##### ##???????? | | ??????????????????????????## #???????? | | ?????????????????????????## #???????? | | ?????????????????????????# [ ### #??????? | | ?????????????????????????# &*##?## #??????? | | ?????????????????????????#&![ ##??## #### #??????? | | ?????????????????????????## &&##??###???##??????? | | ??????????????????????????###& ###??????????????? | | ????????????????????????????## ##?#???????????? | | ?????????????????????????????# % # # #????????? | | ?????????????????????????????# #????????? | | ?????????????????????????????# ## ## #???????? | | ?????????????????????????????## #??#???????????? | | ?????????????????????????????## ##??????????????? | | ????????????????????????????## #??????????????? | | ???????????????????????????## """ #??????????????? | | ??????????????????????????## " " #??????????????? | | ?????????????????????????## ""####??????????????? | | ???????????????????????### ""##????????????????? | | ???????????????????????# @ R""#????????????????? | | ?????????????????? "" """ ""??????????????? | | ?????????????????## " *" " ??????????????? | | ??????????????????## [" " ??????????????? | | ???????????????????# ### " ??????????????? | | ???????????????????# ##??## ###" ?????????????? | | ???????????????????# #??????##??? ????????????? | | ???????????????????# ????????????? #????????????? | | ???????????????????# ????????????????????????????? | | ??????????????????? ????????????????????????????? | | ?????????????????? ?????????????????????????????? | | ?????????????????????????????????????????????????? | | ?????????????????????????????????????????????????? | | ?????????????????????????????????????????????????? | | ?????????????????????????????????????????????????? | | ?????????????????????????????????????????????????? | | ?????????????????????????????????????????????????? | | ?????????????????????????????????????????????????? | | ?????????????????????????????????????????????????? | | ?????????????????????????????????????????????????? | | ?????????????????????????????????????????????????? | | ?????????????????????????????????????????????????? | | ?????????????????????????????????????????????????? | | ?????????????????????????????????????????????????? | | ?????????????????????????????????????????????????? | +----------------------------------------------------+ Best States ------------- Heat Dissipation 25 Energy Generation 10 Energy Capacity 125 Matter Stores 300 Matter Capacity 300 Sight Range 16 Terrain Scan Density 10 Evasion (%) 40 Recoil Reduction 2 Item Schematics ----------------- None Robot Schematics ------------------ None Fabricated ------------ Nothing Repaired ---------- Nothing Alien Tech Used ----------------- None Achievements -------------- None Challenges ------------ None Game ------ Seed TractorTransdimensionalCore Manual? 0 Play Time 00:09:59 Cumulative 18.0 hours Start 2025.07.20 @ 08:04:52 End 2025.07.20 @ 08:13:50 Sessions 1 Manual Loads 0 Difficulty Rogue Special Mode None Game No. 54 Rogue 54 Adventurer 0 Explorer 0 Win Type - Total 0 Types 0/0/0/0/0/0/0/0/0/0 Lore% 19 Gallery% 20 Achievement% 17 Wizard Run 0 Options --------- Layout 1 ASCII 0 Keyboard 0 Movement Mouse Keybinds 0 Fullscreen 1 Font 32/Tamsyn Map View 50x35 Zoom Use 0% Tactical HUD 1 Map Filters NONE Filters NONE Steam 1 RUN: ac0938d6-54d1-4092-9860-7c7d3d8a1556